[Event "Live Chess"]
[Site "Chess.com"]
[Date "2023.05.21"]
[Round "-"]
[White "Inglaterra"]
[Black "ShanthamGrarks"]
[Result "1-0"]
[WhiteElo "2052"]
[BlackElo "1952"]
[TimeControl "300"]
[EndTime "7:57:20 PDT"]
[Termination "Inglaterra won by resignation"]

1. e4 {[%clk 0:04:58.6]} 1... e5 {[%clk 0:04:57.1]} 2. Nf3 {[%clk 0:04:57.9]}
2... d5 {[%clk 0:04:56]} 3. Nxe5 {[%clk 0:04:54.5]} 3... Bd6 {[%clk 0:04:53.9]}
4. d4 {[%clk 0:04:52.4]} 4... dxe4 {[%clk 0:04:51.6]} 5. Nc4 {[%clk 0:04:50.5]}
5... Nf6 {[%clk 0:04:45.2]} 6. Nxd6+ {[%clk 0:04:48]} 6... cxd6 {[%clk 0:04:43]}
7. Be2 {[%clk 0:04:47.6]} 7... O-O {[%clk 0:04:40.2]} 8. O-O {[%clk 0:04:47.1]}
8... d5 {[%clk 0:04:39]} 9. c4 {[%clk 0:04:46.3]} 9... dxc4 {[%clk 0:04:32.3]}
10. Bxc4 {[%clk 0:04:42.4]} 10... Nc6 {[%clk 0:04:31.1]} 11. Be3 {[%clk
0:04:39.1]} 11... Bg4 {[%clk 0:04:27.4]} 12. Qd2 {[%clk 0:04:34.2]} 12... Bh5
{[%clk 0:04:12.7]} 13. Nc3 {[%clk 0:04:29.3]} 13... Ng4 {[%clk 0:04:10.1]} 14.
Nxe4 {[%clk 0:04:18.3]} 14... Qh4 {[%clk 0:03:55.6]} 15. Bf4 {[%clk 0:03:57.1]}
15... Bg6 {[%clk 0:03:44.7]} 16. Nc5 {[%clk 0:03:30.7]} 16... Rad8 {[%clk
0:03:40.1]} 17. h3 {[%clk 0:03:22.8]} 17... Rxd4 {[%clk 0:03:36.8]} 18. Qc1
{[%clk 0:03:14.1]} 18... Nge5 {[%clk 0:03:28]} 19. Bxe5 {[%clk 0:03:06.9]} 19...
Nxe5 {[%clk 0:03:24]} 20. Be2 {[%clk 0:03:00.6]} 20... Bf5 {[%clk 0:03:16.2]}
21. Qe3 {[%clk 0:02:54.3]} 21... Rfd8 {[%clk 0:02:59.4]} 22. Qxe5 {[%clk
0:02:50.7]} 22... R4d5 {[%clk 0:02:57.1]} 23. Qe3 {[%clk 0:02:45]} 23... b6
{[%clk 0:02:47.7]} 24. Nb3 {[%clk 0:02:41.4]} 24... Be6 {[%clk 0:02:36]} 25.
Rad1 {[%clk 0:02:33.5]} 25... Rxd1 {[%clk 0:02:31.6]} 26. Rxd1 {[%clk
0:02:33.4]} 26... Rxd1+ {[%clk 0:02:29.5]} 27. Bxd1 {[%clk 0:02:32.4]} 27... Qf6
{[%clk 0:02:22.2]} 28. Qc3 {[%clk 0:02:15.8]} 28... Qd8 {[%clk 0:02:19.7]} 29.
Bf3 {[%clk 0:02:10.2]} 29... g6 {[%clk 0:02:17.4]} 30. a3 {[%clk 0:02:02.8]}
30... a5 {[%clk 0:02:14.2]} 31. Nd4 {[%clk 0:02:01.5]} 31... Bd5 {[%clk
0:02:06]} 32. Nc6 {[%clk 0:01:45]} 32... Bxc6 {[%clk 0:02:02]} 33. Qxc6 {[%clk
0:01:40.6]} 33... h5 {[%clk 0:02:01.2]} 34. Qa8 {[%clk 0:01:34.3]} 34... Qxa8
{[%clk 0:01:58.2]} 35. Bxa8 {[%clk 0:01:33.6]} 35... Kg7 {[%clk 0:01:58]} 36.
Kf1 {[%clk 0:01:31.8]} 36... Kf6 {[%clk 0:01:57.9]} 37. Ke2 {[%clk 0:01:31.4]}
37... Ke5 {[%clk 0:01:57.8]} 38. Ke3 {[%clk 0:01:30.8]} 38... f5 {[%clk
0:01:56.4]} 39. f4+ {[%clk 0:01:29.7]} 39... Kd6 {[%clk 0:01:54.7]} 40. Kd4
{[%clk 0:01:29]} 1-0

[Event "Live Chess"]
[Site "Chess.com"]
[Date "2023.05.21"]
[Round "-"]
[White "YrrriKharkiv"]
[Black "AMCWAML"]
[Result "1/2-1/2"]
[WhiteElo "2051"]
[BlackElo "2244"]
[TimeControl "300"]
[EndTime "7:57:25 PDT"]
[Termination "Game drawn - insufficient material"]

1. d4 {[%clk 0:04:55.6]} 1... Nf6 {[%clk 0:04:58.3]} 2. c4 {[%clk 0:04:55]} 2...
e6 {[%clk 0:04:58.2]} 3. Nf3 {[%clk 0:04:53.8]} 3... c5 {[%clk 0:04:57.5]} 4. d5
{[%clk 0:04:52.4]} 4... exd5 {[%clk 0:04:57.4]} 5. cxd5 {[%clk 0:04:51.3]} 5...
d6 {[%clk 0:04:57.1]} 6. Nc3 {[%clk 0:04:50]} 6... g6 {[%clk 0:04:56.1]} 7. Bg5
{[%clk 0:04:48.5]} 7... Bg7 {[%clk 0:04:51.5]} 8. e4 {[%clk 0:04:48.1]} 8... h6
{[%clk 0:04:46.2]} 9. Bf4 {[%clk 0:04:46.1]} 9... Bg4 {[%clk 0:04:43]} 10. Bb5+
{[%clk 0:04:43]} 10... Nbd7 {[%clk 0:04:41.7]} 11. Bxd6 {[%clk 0:04:38.9]} 11...
a6 {[%clk 0:04:13.2]} 12. Ba4 {[%clk 0:04:29.3]} 12... b5 {[%clk 0:04:11.1]} 13.
Bc2 {[%clk 0:04:28]} 13... Qb6 {[%clk 0:04:08.5]} 14. e5 {[%clk 0:04:16.2]}
14... Nh5 {[%clk 0:03:54]} 15. h3 {[%clk 0:03:58.2]} 15... Bxf3 {[%clk
0:03:44.9]} 16. Qxf3 {[%clk 0:03:55.9]} 16... Nxe5 {[%clk 0:03:43]} 17. Bxe5
{[%clk 0:03:54.9]} 17... Bxe5 {[%clk 0:03:42.6]} 18. O-O {[%clk 0:03:41.8]}
18... O-O {[%clk 0:03:37.3]} 19. Rfe1 {[%clk 0:03:32.3]} 19... Bg7 {[%clk
0:03:30.1]} 20. Rad1 {[%clk 0:03:28]} 20... Qd6 {[%clk 0:03:16.7]} 21. Ne4
{[%clk 0:03:21.9]} 21... Qe5 {[%clk 0:03:01.3]} 22. b3 {[%clk 0:03:15.9]} 22...
Rad8 {[%clk 0:02:50.3]} 23. Nxc5 {[%clk 0:02:57.1]} 23... Qb2 {[%clk 0:02:18.8]}
24. Bb1 {[%clk 0:02:53.8]} 24... Qa3 {[%clk 0:01:52.5]} 25. Ne4 {[%clk
0:02:40.8]} 25... Be5 {[%clk 0:01:33.8]} 26. Ng3 {[%clk 0:02:30.3]} 26... Bxg3
{[%clk 0:01:27]} 27. fxg3 {[%clk 0:02:27.5]} 27... Rd6 {[%clk 0:01:22.6]} 28.
Rf1 {[%clk 0:02:10.5]} 28... Nf6 {[%clk 0:01:20.1]} 29. Qd3 {[%clk 0:02:01.6]}
29... Rfd8 {[%clk 0:01:16.8]} 30. Qd4 {[%clk 0:01:49.3]} 30... Nxd5 {[%clk
0:01:07.4]} 31. Qd2 {[%clk 0:01:37.3]} 31... Qc5+ {[%clk 0:01:04.8]} 32. Qf2
{[%clk 0:01:33.4]} 32... Qxf2+ {[%clk 0:00:56.5]} 33. Rxf2 {[%clk 0:01:27.7]}
33... Ne3 {[%clk 0:00:55.5]} 34. Rxd6 {[%clk 0:01:26]} 34... Rxd6 {[%clk
0:00:55.4]} 35. Bc2 {[%clk 0:01:19.8]} 35... Kg7 {[%clk 0:00:46.7]} 36. Re2
{[%clk 0:01:13]} 36... Re6 {[%clk 0:00:41.4]} 37. Bd3 {[%clk 0:01:05.5]} 37...
Kf6 {[%clk 0:00:38]} 38. Kf2 {[%clk 0:01:02.1]} 38... Nd1+ {[%clk 0:00:35.3]}
39. Ke1 {[%clk 0:00:48.1]} 39... Nc3 {[%clk 0:00:27.1]} 40. Rxe6+ {[%clk
0:00:46.7]} 40... Kxe6 {[%clk 0:00:25.3]} 41. a3 {[%clk 0:00:42.9]} 41... Ke5
{[%clk 0:00:19.6]} 42. Kd2 {[%clk 0:00:42.1]} 42... Kd4 {[%clk 0:00:19.1]} 43.
a4 {[%clk 0:00:38.7]} 43... bxa4 {[%clk 0:00:16.6]} 44. bxa4 {[%clk 0:00:36.8]}
44... a5 {[%clk 0:00:15.9]} 45. Bc2 {[%clk 0:00:33.6]} 45... g5 {[%clk
0:00:13.8]} 46. h4 {[%clk 0:00:31.6]} 46... Nd5 {[%clk 0:00:13.7]} 47. hxg5
{[%clk 0:00:26.9]} 47... hxg5 {[%clk 0:00:13.6]} 48. Bb3 {[%clk 0:00:25.8]}
48... f5 {[%clk 0:00:10.4]} 49. Ke2 {[%clk 0:00:24.2]} 49... f4 {[%clk
0:00:08.4]} 50. gxf4 {[%clk 0:00:22.1]} 50... gxf4 {[%clk 0:00:08.3]} 51. Kf3
{[%clk 0:00:20.7]} 51... Ne3 {[%clk 0:00:05]} 52. g3 {[%clk 0:00:18.3]} 52...
fxg3 {[%clk 0:00:04.5]} 53. Kxg3 {[%clk 0:00:17.6]} 53... Nd5 {[%clk 0:00:04]}
54. Kf2 {[%clk 0:00:16]} 54... Nc3 {[%clk 0:00:03.9]} 55. Ke1 {[%clk 0:00:14.3]}
55... Kc5 {[%clk 0:00:03.8]} 56. Kd2 {[%clk 0:00:13.5]} 56... Kb4 {[%clk
0:00:03.7]} 57. Bc2 {[%clk 0:00:11.1]} 57... Nxa4 {[%clk 0:00:03.1]} 58. Bxa4
{[%clk 0:00:10.3]} 58... Kxa4 {[%clk 0:00:03]} 59. Kc2 {[%clk 0:00:09.6]} 59...
Ka3 {[%clk 0:00:02.9]} 60. Kb1 {[%clk 0:00:09.1]} 60... Kb3 {[%clk 0:00:02.2]}
61. Ka1 {[%clk 0:00:08.9]} 61... a4 {[%clk 0:00:02.1]} 62. Kb1 {[%clk
0:00:08.6]} 62... a3 {[%clk 0:00:02]} 63. Ka1 {[%clk 0:00:08.3]} 63... Ka4
{[%clk 0:00:01.9]} 64. Kb1 {[%clk 0:00:07.9]} 64... Kb4 {[%clk 0:00:01.8]} 65.
Ka1 {[%clk 0:00:07.6]} 65... Kc4 {[%clk 0:00:01.7]} 66. Kb1 {[%clk 0:00:07.3]}
66... Kc5 {[%clk 0:00:01.6]} 67. Ka1 {[%clk 0:00:07]} 67... Kb5 {[%clk
0:00:01.5]} 68. Kb1 {[%clk 0:00:06.7]} 68... Ka5 {[%clk 0:00:01.4]} 69. Ka1
{[%clk 0:00:06.4]} 69... Kb4 {[%clk 0:00:01.3]} 70. Kb1 {[%clk 0:00:06.2]} 70...
Kb5 {[%clk 0:00:01.2]} 71. Ka2 {[%clk 0:00:05.8]} 71... Ka4 {[%clk 0:00:01.1]}
72. Ka1 {[%clk 0:00:05.3]} 72... Kb3 {[%clk 0:00:01]} 73. Kb1 {[%clk 0:00:05.1]}
73... Kb4 {[%clk 0:00:00.9]} 74. Ka1 {[%clk 0:00:04.8]} 74... Ka4 {[%clk
0:00:00.8]} 75. Ka2 {[%clk 0:00:04.6]} 75... Ka5 {[%clk 0:00:00.7]} 76. Kxa3
{[%clk 0:00:03.7]} 1/2-1/2

[Event "Live Chess"]
[Site "Chess.com"]
[Date "2023.05.21"]
[Round "-"]
[White "ranvir123"]
[Black "LiamClery2020"]
[Result "0-1"]
[WhiteElo "988"]
[BlackElo "2006"]
[TimeControl "300"]
[EndTime "7:57:32 PDT"]
[Termination "LiamClery2020 won by resignation"]

1. e4 {[%clk 0:04:58.8]} 1... Nf6 {[%clk 0:04:58.6]} 2. e5 {[%clk 0:04:57]} 2...
Nd5 {[%clk 0:04:57.3]} 3. d4 {[%clk 0:04:55.2]} 3... d6 {[%clk 0:04:56.3]} 4.
Nf3 {[%clk 0:04:49.6]} 4... dxe5 {[%clk 0:04:55.1]} 5. dxe5 {[%clk 0:04:44.9]}
5... Bg4 {[%clk 0:04:53.4]} 6. Nc3 {[%clk 0:04:37.8]} 6... e6 {[%clk 0:04:44.9]}
7. h3 {[%clk 0:04:32]} 7... Bxf3 {[%clk 0:04:41.5]} 8. Qxf3 {[%clk 0:04:28.4]}
8... Nc6 {[%clk 0:04:41.4]} 9. Nxd5 {[%clk 0:04:17.1]} 9... exd5 {[%clk
0:04:39.1]} 10. Bb5 {[%clk 0:04:16.2]} 10... Qd7 {[%clk 0:04:36.2]} 11. O-O
{[%clk 0:04:09.2]} 11... O-O-O {[%clk 0:04:30.6]} 12. Bg5 {[%clk 0:04:04.5]}
12... Re8 {[%clk 0:04:22.9]} 13. Rfe1 {[%clk 0:04:01.3]} 13... Kb8 {[%clk
0:04:19.9]} 14. Rad1 {[%clk 0:03:55.9]} 14... Bc5 {[%clk 0:04:05]} 15. Qxd5
{[%clk 0:03:38.3]} 15... Qxd5 {[%clk 0:03:59.9]} 16. Rxd5 {[%clk 0:03:35.4]}
16... Bd6 {[%clk 0:03:55.6]} 17. Re3 {[%clk 0:03:20]} 17... Nb4 {[%clk
0:03:48.2]} 18. Rxd6 {[%clk 0:02:36.9]} 18... cxd6 {[%clk 0:03:42.3]} 19. Bxe8
{[%clk 0:02:35.4]} 19... Rxe8 {[%clk 0:03:41.4]} 20. exd6 {[%clk 0:02:32.1]}
20... Rxe3 {[%clk 0:03:37.1]} 21. fxe3 {[%clk 0:02:29]} 21... Kc8 {[%clk
0:03:30.8]} 22. e4 {[%clk 0:02:19.1]} 22... f6 {[%clk 0:03:27.1]} 23. Bf4 {[%clk
0:02:16.9]} 23... Nxc2 {[%clk 0:03:24.4]} 24. e5 {[%clk 0:02:13.2]} 24... Nd4
{[%clk 0:03:18.2]} 25. Be3 {[%clk 0:02:00.8]} 25... Nf5 {[%clk 0:03:10.3]} 26.
Bxa7 {[%clk 0:01:55]} 26... fxe5 {[%clk 0:03:08.5]} 27. g4 {[%clk 0:01:46.3]}
27... Nxd6 {[%clk 0:03:06.2]} 28. Kf2 {[%clk 0:01:44.2]} 28... Kd7 {[%clk
0:03:04.3]} 29. Ke3 {[%clk 0:01:42.6]} 29... Ke6 {[%clk 0:03:02.9]} 30. a4
{[%clk 0:01:36.9]} 30... Nc4+ {[%clk 0:03:01.8]} 31. Ke4 {[%clk 0:01:31.6]}
31... Nxb2 {[%clk 0:03:00.1]} 32. Bb8 {[%clk 0:01:29.7]} 32... Nxa4 {[%clk
0:02:57.2]} 33. Bxe5 {[%clk 0:01:28.7]} 33... Nc5+ {[%clk 0:02:56.5]} 34. Kd4
{[%clk 0:01:27]} 34... Nb3+ {[%clk 0:02:54.7]} 35. Ke4 {[%clk 0:01:25.5]} 35...
g6 {[%clk 0:02:53]} 36. Bf4 {[%clk 0:00:55.1]} 36... Nc5+ {[%clk 0:02:48.1]} 37.
Kd4 {[%clk 0:00:49.6]} 37... Nd7 {[%clk 0:02:44.3]} 38. Bh6 {[%clk 0:00:45.1]}
38... b5 {[%clk 0:02:40.7]} 39. Kc3 {[%clk 0:00:40.2]} 39... Kd5 {[%clk
0:02:36.6]} 40. Kb4 {[%clk 0:00:38.1]} 40... Kc6 {[%clk 0:02:35.6]} 41. Bg7
{[%clk 0:00:34.2]} 41... Nb6 {[%clk 0:02:32.4]} 42. Kb3 {[%clk 0:00:30.8]} 42...
Nd5 {[%clk 0:02:30.7]} 43. Bf8 {[%clk 0:00:26.5]} 43... Nf4 {[%clk 0:02:25.6]}
44. h4 {[%clk 0:00:23.3]} 44... Ne6 {[%clk 0:02:24.6]} 45. Ba3 {[%clk
0:00:19.5]} 45... Kd5 {[%clk 0:02:21.8]} 46. h5 {[%clk 0:00:18.6]} 46... g5
{[%clk 0:02:14.2]} 47. Kb4 {[%clk 0:00:15.7]} 47... Kc6 {[%clk 0:02:11.7]} 48.
Bb2 {[%clk 0:00:14.1]} 48... Nc7 {[%clk 0:02:07.9]} 49. Be5 {[%clk 0:00:12.6]}
49... Nd5+ {[%clk 0:02:03.7]} 50. Ka5 {[%clk 0:00:10.5]} 50... Ne3 {[%clk
0:02:02.3]} 51. Bf6 {[%clk 0:00:08.8]} 51... h6 {[%clk 0:02:00.2]} 52. Bg7
{[%clk 0:00:07.6]} 52... Nxg4 {[%clk 0:01:58.8]} 53. Bxh6 {[%clk 0:00:06.6]}
53... Nxh6 {[%clk 0:01:57.9]} 54. Kb4 {[%clk 0:00:04.3]} 54... g4 {[%clk
0:01:57.8]} 55. Kc3 {[%clk 0:00:03.7]} 55... g3 {[%clk 0:01:57.7]} 56. Kd2
{[%clk 0:00:02.9]} 56... g2 {[%clk 0:01:57.6]} 57. Ke2 {[%clk 0:00:02.2]} 57...
g1=Q {[%clk 0:01:56.5]} 0-1

[Event "Live Chess"]
[Site "Chess.com"]
[Date "2023.05.21"]
[Round "-"]
[White "RichardABates"]
[Black "GMHarry-youtube"]
[Result "1-0"]
[WhiteElo "2161"]
[BlackElo "2029"]
[TimeControl "300"]
[EndTime "7:57:39 PDT"]
[Termination "RichardABates won by checkmate"]

1. d4 {[%clk 0:04:56.9]} 1... Nf6 {[%clk 0:04:58.6]} 2. Nf3 {[%clk 0:04:54.8]}
2... g6 {[%clk 0:04:57.8]} 3. g3 {[%clk 0:04:52]} 3... Bg7 {[%clk 0:04:57.2]} 4.
Bg2 {[%clk 0:04:50.5]} 4... O-O {[%clk 0:04:56.7]} 5. O-O {[%clk 0:04:49.3]}
5... d5 {[%clk 0:04:55.2]} 6. c4 {[%clk 0:04:47.6]} 6... c6 {[%clk 0:04:50.2]}
7. cxd5 {[%clk 0:04:45.8]} 7... cxd5 {[%clk 0:04:48.9]} 8. Ne5 {[%clk
0:04:44.8]} 8... Nc6 {[%clk 0:04:47.6]} 9. Nc3 {[%clk 0:04:42.8]} 9... e6 {[%clk
0:04:45.1]} 10. Nf3 {[%clk 0:04:36.1]} 10... Nd7 {[%clk 0:04:42.7]} 11. Bf4
{[%clk 0:04:32.3]} 11... Nb6 {[%clk 0:04:37.6]} 12. b3 {[%clk 0:04:29.1]} 12...
h6 {[%clk 0:04:30.3]} 13. h4 {[%clk 0:04:27.1]} 13... f6 {[%clk 0:04:11.9]} 14.
Qd2 {[%clk 0:04:18.3]} 14... Kh7 {[%clk 0:04:00.7]} 15. e4 {[%clk 0:04:12.8]}
15... e5 {[%clk 0:03:50.5]} 16. Be3 {[%clk 0:04:05]} 16... dxe4 {[%clk
0:03:42.5]} 17. Nxe4 {[%clk 0:04:02.3]} 17... f5 {[%clk 0:03:41.7]} 18. Neg5+
{[%clk 0:03:27.2]} 18... hxg5 {[%clk 0:03:38.1]} 19. Nxg5+ {[%clk 0:03:25.2]}
19... Kg8 {[%clk 0:03:37]} 20. d5 {[%clk 0:03:18.2]} 20... Nd4 {[%clk
0:03:31.5]} 21. Rac1 {[%clk 0:03:06]} 21... Nxd5 {[%clk 0:03:26.5]} 22. Bxd4
{[%clk 0:02:57.3]} 22... exd4 {[%clk 0:03:23.2]} 23. h5 {[%clk 0:02:51.9]} 23...
Bh6 {[%clk 0:03:18.8]} 24. hxg6 {[%clk 0:02:27.4]} 24... Bxg5 {[%clk 0:03:14.8]}
25. Bxd5+ {[%clk 0:02:26]} 25... Qxd5 {[%clk 0:03:07.3]} 26. Qxg5 {[%clk
0:02:24.3]} 26... Bd7 {[%clk 0:02:39.3]} 27. Qh6 {[%clk 0:02:15.5]} 27... Rf7
{[%clk 0:02:05.1]} 28. gxf7+ {[%clk 0:02:14.1]} 28... Kxf7 {[%clk 0:02:04.4]}
29. Rc7 {[%clk 0:02:07.5]} 29... Qe6 {[%clk 0:01:45.1]} 30. Qh7+ {[%clk
0:01:59.8]} 30... Ke8 {[%clk 0:01:37.2]} 31. Qh8+ {[%clk 0:01:54.3]} 31... Ke7
{[%clk 0:01:36.1]} 32. Qxa8 {[%clk 0:01:52.5]} 32... Qd6 {[%clk 0:01:35.3]} 33.
Qxb7 {[%clk 0:01:47.4]} 33... d3 {[%clk 0:01:33.8]} 34. Rxd7+ {[%clk 0:01:45.5]}
34... Qxd7 {[%clk 0:01:33.7]} 35. Qxd7+ {[%clk 0:01:44.2]} 35... Kxd7 {[%clk
0:01:33.6]} 36. Rd1 {[%clk 0:01:43.4]} 36... d2 {[%clk 0:01:33.5]} 37. Rxd2+
{[%clk 0:01:42.4]} 37... Kc6 {[%clk 0:01:32.8]} 38. Kg2 {[%clk 0:01:41.4]} 38...
Kc7 {[%clk 0:01:32.7]} 39. Kf3 {[%clk 0:01:40.5]} 39... Kc6 {[%clk 0:01:31.7]}
40. Kf4 {[%clk 0:01:39.4]} 40... Kc7 {[%clk 0:01:31.6]} 41. Kxf5 {[%clk
0:01:38.4]} 41... Kc6 {[%clk 0:01:31.5]} 42. g4 {[%clk 0:01:37.6]} 42... Kc7
{[%clk 0:01:31.4]} 43. g5 {[%clk 0:01:36.8]} 43... Kc6 {[%clk 0:01:31.3]} 44. g6
{[%clk 0:01:36.1]} 44... Kc7 {[%clk 0:01:31.2]} 45. g7 {[%clk 0:01:35.3]} 45...
Kc6 {[%clk 0:01:31.1]} 46. g8=Q {[%clk 0:01:32.7]} 46... Kc7 {[%clk 0:01:31]}
47. Qd8+ {[%clk 0:01:31.2]} 47... Kc6 {[%clk 0:01:30.9]} 48. Qd7+ {[%clk
0:01:29.8]} 48... Kb6 {[%clk 0:01:29.8]} 49. b4 {[%clk 0:01:27.4]} 49... a5
{[%clk 0:01:27.3]} 50. Rd6# {[%clk 0:01:26]} 1-0

[Event "Live Chess"]
[Site "Chess.com"]
[Date "2023.05.21"]
[Round "-"]
[White "ramses-IIG"]
[Black "DoYouLikeCurry"]
[Result "1/2-1/2"]
[WhiteElo "877"]
[BlackElo "1457"]
[TimeControl "300"]
[EndTime "7:57:44 PDT"]
[Termination "Game drawn - timeout vs insufficient material"]

1. e4 {[%clk 0:04:58.4]} 1... c6 {[%clk 0:04:57.9]} 2. Nf3 {[%clk 0:04:58.3]}
2... d5 {[%clk 0:04:56.6]} 3. e5 {[%clk 0:04:56.5]} 3... Bf5 {[%clk 0:04:54.8]}
4. d4 {[%clk 0:04:56.4]} 4... e6 {[%clk 0:04:54.1]} 5. Bg5 {[%clk 0:04:53.1]}
5... Qb6 {[%clk 0:04:51.1]} 6. b3 {[%clk 0:04:45.8]} 6... c5 {[%clk 0:04:49]} 7.
c3 {[%clk 0:04:43.1]} 7... Nc6 {[%clk 0:04:47.4]} 8. Bd3 {[%clk 0:04:38.9]} 8...
cxd4 {[%clk 0:04:39.3]} 9. Bxf5 {[%clk 0:04:31]} 9... exf5 {[%clk 0:04:36.1]}
10. cxd4 {[%clk 0:04:30.9]} 10... Bb4+ {[%clk 0:04:24.8]} 11. Bd2 {[%clk
0:04:11.3]} 11... Nxd4 {[%clk 0:04:14.6]} 12. Nxd4 {[%clk 0:03:32.8]} 12... Qxd4
{[%clk 0:04:12.1]} 13. Bxb4 {[%clk 0:03:29.4]} 13... Qxb4+ {[%clk 0:04:10.9]}
14. Qd2 {[%clk 0:03:24.1]} 14... Qe4+ {[%clk 0:04:07.1]} 15. Qe2 {[%clk
0:03:18.1]} 15... Qxe2+ {[%clk 0:04:05.4]} 16. Kxe2 {[%clk 0:03:18]} 16... f6
{[%clk 0:04:01.4]} 17. f4 {[%clk 0:03:14.4]} 17... fxe5 {[%clk 0:03:59.8]} 18.
fxe5 {[%clk 0:03:14.3]} 18... Ne7 {[%clk 0:03:57]} 19. Rf1 {[%clk 0:03:09.9]}
19... O-O {[%clk 0:03:55]} 20. Kf2 {[%clk 0:03:08.5]} 20... Nc6 {[%clk
0:03:52.6]} 21. e6 {[%clk 0:03:04]} 21... Rae8 {[%clk 0:03:50]} 22. Re1 {[%clk
0:03:02.3]} 22... Nb4 {[%clk 0:03:44.9]} 23. Re2 {[%clk 0:02:52.3]} 23... Nd3+
{[%clk 0:03:40.6]} 24. Kg1 {[%clk 0:02:45.6]} 24... Nf4 {[%clk 0:03:37.8]} 25.
Rc2 {[%clk 0:02:22.5]} 25... Nxe6 {[%clk 0:03:32.3]} 26. Nc3 {[%clk 0:02:15.4]}
26... d4 {[%clk 0:03:27.8]} 27. Nd5 {[%clk 0:02:09.8]} 27... Rc8 {[%clk
0:03:15.9]} 28. Rxc8 {[%clk 0:01:59]} 28... Rxc8 {[%clk 0:03:11.9]} 29. Ne7+
{[%clk 0:01:57.8]} 29... Kf7 {[%clk 0:03:07.1]} 30. Nxc8 {[%clk 0:01:57.7]}
30... Kf6 {[%clk 0:03:02.9]} 31. Nd6 {[%clk 0:01:54.5]} 31... Ke5 {[%clk
0:03:02.1]} 32. Nxb7 {[%clk 0:01:49.2]} 32... Ke4 {[%clk 0:03:00.4]} 33. Nd6+
{[%clk 0:01:45.4]} 33... Ke3 {[%clk 0:02:58.5]} 34. Nxf5+ {[%clk 0:01:43.4]}
34... Ke2 {[%clk 0:02:56.6]} 35. Rc1 {[%clk 0:01:36.1]} 35... d3 {[%clk
0:02:55.3]} 36. Ng3+ {[%clk 0:01:24.2]} 36... Kd2 {[%clk 0:02:52.8]} 37. Rf1
{[%clk 0:01:11.1]} 37... Kc2 {[%clk 0:02:48.7]} 38. Ne4 {[%clk 0:00:54.8]} 38...
d2 {[%clk 0:02:31.8]} 39. Nxd2 {[%clk 0:00:52.5]} 39... Kxd2 {[%clk 0:02:30.8]}
40. Rf7 {[%clk 0:00:48.3]} 40... Kc2 {[%clk 0:02:27.2]} 41. Rxa7 {[%clk
0:00:44.4]} 41... Kb2 {[%clk 0:02:25.9]} 42. Kf2 {[%clk 0:00:43]} 42... Nd4
{[%clk 0:02:20.7]} 43. Rxg7 {[%clk 0:00:41]} 43... Kxa2 {[%clk 0:02:18.7]} 44.
Rxh7 {[%clk 0:00:40.1]} 44... Kxb3 {[%clk 0:02:18.1]} 45. g4 {[%clk 0:00:38.7]}
45... Ne6 {[%clk 0:02:15]} 46. h4 {[%clk 0:00:32.9]} 46... Nf4 {[%clk
0:02:12.5]} 47. Kf3 {[%clk 0:00:30.2]} 47... Ng6 {[%clk 0:02:10.3]} 48. h5
{[%clk 0:00:27.4]} 48... Nh4+ {[%clk 0:02:09.5]} 49. Kf4 {[%clk 0:00:22.4]}
49... Ng2+ {[%clk 0:02:08.2]} 50. Kf5 {[%clk 0:00:19.5]} 50... Ne3+ {[%clk
0:02:07.2]} 51. Ke6 {[%clk 0:00:17.7]} 51... Nxg4 {[%clk 0:02:05]} 52. Rc7
{[%clk 0:00:14]} 52... Nh6 {[%clk 0:02:02]} 53. Kd5 {[%clk 0:00:13.2]} 53... Nf5
{[%clk 0:01:59.2]} 54. Ke4 {[%clk 0:00:10.3]} 54... Ng3+ {[%clk 0:01:57.3]} 55.
Kd3 {[%clk 0:00:08.7]} 55... Nxh5 {[%clk 0:01:56.9]} 56. Rb7+ {[%clk 0:00:07.3]}
56... Ka4 {[%clk 0:01:55.1]} 57. Kc3 {[%clk 0:00:06.4]} 57... Ka5 {[%clk
0:01:54.1]} 58. Kc4 {[%clk 0:00:05.3]} 58... Ka6 {[%clk 0:01:53.3]} 59. Rb1
{[%clk 0:00:03.8]} 59... Ka5 {[%clk 0:01:50.5]} 60. Kc5 {[%clk 0:00:02.3]} 60...
Ka4 {[%clk 0:01:49.1]} 61. Kc6 {[%clk 0:00:01.7]} 61... Ka5 {[%clk 0:01:47.7]}
62. Rb8 {[%clk 0:00:00.5]} 62... Ka4 {[%clk 0:01:46.3]} 1/2-1/2